bitfinex-derivatives/quotes_SOLF0:USTF0_20241008
["timestamp","ask_amount","ask_price","bid_price","bid_amount"]
[1728414143075,21.722,142.81,142.79,0.12502]
[1728414146379,3.5029,142.8,142.79,0.12502]
[1728414146587,18.2193,142.81,142.73,0.12502]
[1728414146885,16.81,142.78,142.73,0.12502]
[1728414147084,4.8424,142.77,142.74,3.5042]
[1728414147490,1.3387,142.77,142.73,0.12502]
[1728414147689,1.3387,142.77,142.74,3.5043]
[1728414148187,1.3387,142.77,142.73,0.12502]
[1728414148484,1.3387,142.77,142.75,3.504]
[1728414150787,1.3387,142.77,142.73,0.12502]
[1728414151290,4.8424,142.77,142.74,3.5043]
[1728414153489,5.2,142.76,142.74,3.5043]
[1728414155587,20.3142,142.75,142.73,0.12502]
[1728414155887,5.2,142.76,142.67,0.12502]
[1728414155888,16.81,142.74,142.67,0.12502]
[1728414156087,5.2,142.73,142.67,0.12502]
[1728414156287,16.81,142.72,142.67,0.12502]
[1728414156690,1.4293,142.71,142.67,0.12502]
[1728414157085,4.9346,142.71,142.68,3.5058]
[1728414157392,4.9346,142.71,142.67,0.12502]
[1728414157393,22.01,142.7,142.67,0.12502]
[1728414157585,25.5155,142.7,142.67,0.12502]
[1728414159694,22.01,142.7,142.67,0.12502]
[1728414159894,16.81,142.68,142.67,0.12502]
[1728414160391,3.5061,142.67,142.66,0.06509432]
[1728414160593,25.5161,142.67,142.63,3.507]
[1728414160990,22.01,142.67,142.62,0.09854222]
[1728414161199,3.5066,142.66,142.63,3.5071]
[1728414161889,16.81,142.65,142.62,0.09854222]
[1728414162091,16.81,142.65,142.61,0.12502]
[1728414162092,16.81,142.63,142.61,0.12502]
[1728414162294,16.81,142.63,142.59,0.09573048]
[1728414162493,3.5075,142.62,142.59,0.09573048]
[1728414162793,22.01,142.61,142.59,0.09573048]
[1728414164000,25.5177,142.61,142.59,0.09573048]
[1728414164201,22.01,142.61,142.59,0.09573048]
[1728414164496,25.5178,142.61,142.59,0.09573048]
[1728414165306,3.5078,142.6,142.59,0.09573048]
[1728414165608,22.01,142.61,142.59,0.09573048]
[1728414166003,25.5178,142.61,142.59,0.09573048]
[1728414166198,22.01,142.61,142.59,0.09573048]
[1728414166710,3.5078,142.6,142.59,0.09573048]
[1728414166907,22.01,142.61,142.59,0.09573048]
[1728414167608,22.01,142.61,142.59,3.60363048]
[1728414167910,22.01,142.61,142.59,0.09573048]
[1728414168820,25.5176,142.61,142.59,0.09573048]
[1728414169303,3.5078,142.6,142.59,0.09573048]
[1728414171704,22.01,142.61,142.55,0.19371387]
[1728414171909,16.81,142.57,142.55,3.70271387]
[1728414172110,5.2,142.56,142.55,3.70271387]
[1728414173205,5.2,142.56,142.51,0.04861953]
[1728414173416,16.81,142.54,142.51,0.04861953]
[1728414173610,16.81,142.54,142.51,3.55861953]
[1728414173611,20.3193,142.54,142.51,3.55861953]
[1728414173818,5.2,142.53,142.51,3.55861953]
[1728414174416,16.81,142.52,142.51,0.04861953]
[1728414174718,20.3198,142.52,142.51,0.04861953]
[1728414175611,16.81,142.52,142.51,0.04861953]
[1728414176315,20.3198,142.52,142.51,0.04861953]
[1728414176619,22.01,142.53,142.51,3.55851953]
[1728414177918,22.01,142.53,142.51,0.04861953]
[1728414178118,25.5197,142.53,142.51,0.04861953]
[1728414178727,16.81,142.53,142.51,0.04861953]
[1728414179020,16.81,142.55,142.51,0.04861953]
[1728414179216,5.2,142.54,142.51,0.04861953]
[1728414179718,5.2,142.54,142.53,3.5096]
[1728414180522,22.01,142.54,142.51,0.04861953]
[1728414180725,3.5103,142.5,142.49,0.12502]
[1728414181022,22.01,142.5,142.47,0.13389448]
[1728414181217,16.81,142.48,142.47,0.13389448]
[1728414181624,20.3208,142.48,142.47,0.13389448]
[1728414181920,16.81,142.48,142.47,0.13389448]
[1728414184124,20.3208,142.48,142.47,0.13389448]
[1728414185927,16.81,142.48,142.47,0.13389448]
[1728414186125,25.5205,142.5,142.47,3.64479448]
[1728414186622,22.01,142.5,142.47,0.13389448]
[1728414186829,3.5107,142.49,142.47,0.13389448]
[1728414187326,20.3208,142.48,142.47,0.13389448]
[1728414188917,16.81,142.5,142.47,0.13389448]
[1728414189122,5.2,142.53,142.47,0.13389448]
[1728414189429,8.7098,142.53,142.49,3.5104]
[1728414190023,8.7098,142.53,142.47,1.51139448]
[1728414190424,16.81,142.52,142.47,1.51139448]
[1728414190726,16.81,142.52,142.47,5.02229448]
[1728414190922,16.81,142.52,142.47,1.51139448]
[1728414191122,3.5105,142.5,142.47,0.13389448]
[1728414192534,3.5105,142.5,142.47,3.64489448]
[1728414196730,8.7105,142.5,142.47,3.64489448]
[1728414197433,5.2,142.5,142.49,3.5105]
[1728414198135,16.81,142.52,142.5,3.5101]
[1728414198336,5.2,142.53,142.5,3.5101]
[1728414198636,8.7097,142.53,142.5,3.5101]
[1728414199241,3.5097,142.53,142.47,0.13389448]
[1728414199430,3.5098,142.52,142.47,0.13389448]
[1728414199838,3.5098,142.52,142.49,3.5104]
[1728414202236,20.3205,142.5,142.47,3.64479448]
[1728414203536,16.81,142.48,142.43,0.12502]
[1728414203832,16.81,142.44,142.43,0.12502]
[1728414204029,25.5218,142.44,142.43,0.12502]
[1728414205636,5.2,142.44,142.43,0.12502]
[1728414205942,16.81,142.47,142.43,0.12502]
[1728414206141,5.2,142.46,142.43,0.12502]
[1728414206440,20.3217,142.45,142.43,0.12502]
[1728414210448,16.81,142.45,142.43,0.12502]
[1728414210641,3.5118,142.44,142.43,0.12502]
[1728414211848,16.81,142.45,142.43,0.12502]
[1728414213458,3.5118,142.44,142.43,0.12502]
[1728414214365,16.81,142.45,142.43,0.12502]
[1728414214661,22.01,142.45,142.43,0.12502]
[1728414215054,16.81,142.45,142.43,0.12502]
[1728414216261,5.2,142.46,142.43,0.12502]
[1728414216463,16.81,142.47,142.43,0.12502]
[1728414216664,16.81,142.51,142.43,5.32502]
[1728414216868,3.5105,142.5,142.45,3.5114]
[1728414217163,3.5105,142.5,142.43,5.32502]
[1728414217363,3.5105,142.5,142.47,3.5109]
[1728414218165,5.2,142.51,142.44,3.43049445]
[1728414218462,5.2,142.51,142.47,3.5109]
[1728414218868,3.5104,142.5,142.47,3.5109]
[1728414220570,5.2,142.51,142.43,25.63817508]
[1728414221172,1.4425,142.54,142.45,16.81]
[1728414221365,1.4425,142.54,142.46,6.6278]
[1728414221858,1.4425,142.54,142.51,3.5099]
[1728414222054,1.4425,142.54,142.46,7.9808]
[1728414222268,4.9519,142.54,142.5,3.5102]
[1728414222465,4.9519,142.54,142.46,7.9808]
[1728414222667,0.12502,142.55,142.47,16.81]
[1728414222965,3.5093,142.54,142.5,3.5101]
[1728414223362,3.63432,142.55,142.49,3.5104]
[1728414223559,3.63432,142.55,142.49,5.2]
[1728414223763,0.12502,142.55,142.49,5.2]
[1728414224070,3.63422,142.55,142.51,3.5099]
[1728414224270,0.12502,142.55,142.49,5.2]
[1728414224863,0.12502,142.55,142.52,3.5097]
[1728414226067,3.63422,142.55,142.51,3.5099]
[1728414227666,3.63422,142.55,142.52,3.5098]
[1728414228066,3.5095,142.54,142.51,3.5099]
[1728414228267,16.81,142.53,142.49,5.2]
[1728414228871,16.81,142.53,142.49,8.7104]
[1728414229376,16.81,142.53,142.51,3.51]
[1728414230167,5.2,142.54,142.51,3.51]
[1728414231381,5.2,142.54,142.49,5.2]
[1728414231676,5.2,142.54,142.52,3.5097]
[1728414234272,5.2,142.54,142.53,3.5096]
[1728414234674,0.12502,142.55,142.49,5.2]
[1728414235376,0.12502,142.55,142.5,3.5101]
[1728414235577,0.12502,142.55,142.49,22.01]
[1728414236076,0.12502,142.55,142.54,3.5093]
[1728414237378,0.12502,142.55,142.5,3.5101]
[1728414237579,0.12502,142.55,142.49,22.01]
[1728414238574,0.12502,142.55,142.5,3.5101]
[1728414238772,0.12502,142.55,142.49,22.01]
[1728414239382,0.12502,142.55,142.53,3.5095]
[1728414240082,0.12502,142.55,142.5,3.5101]
[1728414240379,0.12502,142.55,142.49,22.01]
[1728414240881,0.12502,142.55,142.53,3.5093]
[1728414241181,0.12502,142.55,142.51,3.48424107]
[1728414241380,0.12502,142.55,142.51,16.81]
[1728414241585,0.12502,142.55,142.52,5.22]
[1728414242182,0.12502,142.55,142.54,3.5093]
[1728414244279,16.93502,142.61,142.52,6.6343]
[1728414244280,0.12502,142.61,142.53,16.81]
[1728414244485,3.5079,142.6,142.53,16.81]
[1728414245078,3.5079,142.6,142.57,3.5084]
[1728414245271,0.12502,142.61,142.55,5.22]
[1728414245883,0.12502,142.61,142.59,3.5079]
[1728414246385,0.12502,142.61,142.55,22.03]
[1728414246587,0.12502,142.61,142.6,3.5078]
[1728414247281,0.12502,142.61,142.6,7.02007419]
[1728414248088,0.12502,142.61,142.6,3.5078]
[1728414250188,0.12502,142.61,142.57,1.4124]
[1728414250784,0.12502,142.61,142.57,5.22]
[1728414250986,0.12502,142.61,142.58,3.5083]
[1728414251189,0.12502,142.61,142.57,5.22]
[1728414251388,0.12502,142.61,142.59,3.508]
[1728414252084,0.12502,142.61,142.6,3.5078]
[1728414252386,0.12502,142.61,142.57,5.22]
[1728414252596,0.12502,142.61,142.58,3.5082]
[1728414252789,0.12502,142.61,142.56,5.22]
[1728414253090,3.5078,142.6,142.56,5.22]
[1728414253294,16.93502,142.61,142.56,3.5087]
[1728414253483,3.5082,142.59,142.56,3.5087]
[1728414254190,3.5085,142.58,142.54,3.5091]
[1728414254394,3.5085,142.58,142.51,20.33880286]
[1728414254395,3.5085,142.58,142.53,5.22]
[1728414254999,3.5085,142.58,142.55,3.5089]
[1728414255298,3.5079,142.6,142.53,5.22]
[1728414255696,3.5079,142.6,142.57,3.5085]
[1728414255991,3.63272,142.61,142.53,22.03]
[1728414256194,0.12502,142.61,142.53,22.03]
[1728414256393,16.93502,142.61,142.56,3.5086]
[1728414256695,3.5082,142.59,142.56,3.5086]
[1728414256993,16.93502,142.61,142.53,22.03]
[1728414257596,16.93502,142.61,142.56,3.5088]
[1728414257790,3.5083,142.59,142.56,3.5088]
[1728414258497,16.93502,142.61,142.56,3.5088]
[1728414258692,16.93502,142.61,142.53,5.22]
[1728414259194,3.5085,142.58,142.53,5.22]
[1728414259396,3.5085,142.58,142.56,3.5088]
[1728414259697,16.93502,142.61,142.53,5.22]
[1728414259897,3.5081,142.59,142.57,3.5084]
[1728414261297,0.12502,142.61,142.57,3.5084]
[1728414261498,0.12502,142.61,142.58,3.5082]
[1728414263399,3.5079,142.6,142.58,3.5082]
[1728414267799,16.93502,142.61,142.56,3.5086]
[1728414268001,16.93502,142.61,142.53,1.3098]
[1728414268299,3.5087,142.57,142.54,3.5091]
[1728414268601,3.5087,142.57,142.53,5.22]
[1728414268802,3.5088,142.57,142.54,3.5093]
[1728414269001,3.5088,142.57,142.53,5.22]
[1728414269402,3.5088,142.57,142.54,3.5091]
[1728414269594,16.81,142.59,142.53,5.22]
[1728414269993,16.93502,142.61,142.57,3.5084]
[1728414270197,3.5083,142.59,142.54,5.22]
[1728414270505,16.93502,142.61,142.55,3.5089]
[1728414270703,16.93502,142.61,142.54,5.22]
[1728414270905,3.5083,142.58,142.54,5.22]
[1728414271106,3.5083,142.58,142.55,3.5089]
[1728414274712,16.81,142.59,142.54,5.22]
[1728414274905,3.5088,142.57,142.54,8.7292]
[1728414275311,16.81,142.59,142.5,16.81]
[1728414275511,3.5092,142.55,142.52,3.5097]
[1728414277017,16.81,142.57,142.51,5.22]
[1728414277206,3.5089,142.56,142.53,3.5096]
[1728414278810,3.5087,142.57,142.54,3.5093]
[1728414283719,18.179,142.59,142.51,3.50996002]
[1728414284012,3.5089,142.56,142.53,3.5094]
[1728414284416,10.79,142.55,142.53,3.5094]
[1728414285814,3.5089,142.56,142.53,3.5094]
[1728414287213,10.79,142.57,142.52,5.22]
[1728414287412,12.159,142.59,142.54,10.79]
[1728414288213,10.79,142.57,142.52,5.22]
[1728414288418,10.79,142.56,142.52,16.01]
[1728414288717,14.2989,142.56,142.53,3.5094]
[1728414289418,10.79,142.56,142.54,3.5093]
[1728414290720,3.5087,142.57,142.54,3.5093]
[1728414296336,14.2987,142.57,142.54,3.5093]
[1728414299231,3.509,142.56,142.53,3.5094]
[1728414299434,10.79,142.57,142.53,3.5094]
[1728414300435,3.509,142.56,142.53,3.5094]
[1728414300634,10.79,142.54,142.49,0.12502]
[1728414300835,10.79,142.53,142.49,0.12502]
[1728414301038,10.79,142.51,142.49,0.12502]
[1728414301931,14.3002,142.51,142.49,0.12502]
[1728414302740,1.376,142.56,142.5,10.79]
[1728414302931,5.2,142.57,142.53,10.79]
[1728414303133,5.2,142.57,142.54,14.2991]
[1728414303331,5.2,142.57,142.54,10.79]
[1728414303639,14.2983,142.59,142.56,3.5088]
[1728414304140,10.79,142.59,142.56,3.5088]
[1728414304344,3.5085,142.58,142.55,3.509]
[1728414305444,10.79,142.58,142.55,3.509]
[1728414305632,3.5086,142.57,142.55,3.509]
[1728414306244,3.5086,142.57,142.53,10.79]
[1728414306544,3.509,142.56,142.52,5.2]
[1728414307139,14.2987,142.57,142.52,5.2]
[1728414307330,14.2987,142.57,142.54,3.5092]
[1728414307535,10.79,142.58,142.53,10.79]
[1728414307732,14.2986,142.58,142.54,3.5091]
[1728414308038,10.79,142.58,142.53,10.79]
[1728414309043,14.2985,142.58,142.53,10.79]
[1728414309344,10.79,142.59,142.54,10.79]
[1728414309744,10.79,142.59,142.56,3.5086]
[1728414309745,14.2982,142.59,142.56,3.5086]
[1728414310041,10.79,142.57,142.53,10.79]
[1728414310241,10.79,142.57,142.52,19.54175745]
[1728414310643,14.2987,142.57,142.53,3.5094]
[1728414310844,14.2987,142.57,142.52,19.54175745]
[1728414311241,14.2987,142.57,142.54,3.5092]
[1728414312443,10.79,142.56,142.52,10.79]
[1728414312645,10.79,142.55,142.5,2.765]
[1728414312945,10.79,142.55,142.5,7.965]
[1728414314045,3.5089,142.56,142.53,3.5095]
[1728414314245,5.2,142.57,142.53,10.79]
[1728414314443,15.99,142.57,142.52,10.79]
[1728414314741,19.4987,142.57,142.53,3.5093]
[1728414315153,10.79,142.56,142.53,3.5093]
[1728414315449,14.299,142.56,142.53,3.5093]
[1728414315747,10.79,142.56,142.51,10.79]
[1728414315946,14.2991,142.55,142.52,3.5096]
[1728414318047,3.5093,142.54,142.51,3.5099]
[1728414319850,10.79,142.53,142.49,0.12502]
[1728414320042,10.79,142.52,142.49,3.63542]
[1728414320243,10.79,142.51,142.49,0.12502]
[1728414321143,10.79,142.5,142.49,0.12502]
[1728414321350,14.3003,142.5,142.49,0.12502]
[1728414321741,3.5112,142.47,142.43,0.12502]
[1728414322051,10.79,142.48,142.43,10.91502]
[1728414322355,10.79,142.48,142.45,3.5114]
[1728414323053,10.79,142.48,142.43,0.12502]
[1728414323257,10.79,142.46,142.44,3.5116]
[1728414323756,10.79,142.48,142.44,3.5116]
[1728414324456,16.85,142.49,142.44,3.5116]
[1728414324754,16.85,142.47,142.43,0.12502]
[1728414324949,3.5115,142.46,142.43,0.12502]
[1728414325351,1.3245,142.5,142.44,16.85]
[1728414325557,3.5096,142.53,142.46,16.85]
[1728414325758,16.85,142.54,142.46,16.85]
[1728414326155,3.5099,142.52,142.48,3.5107]
[1728414326569,16.85,142.54,142.48,3.5107]
[1728414326858,3.51,142.52,142.48,3.5107]
[1728414327253,5.2,142.53,142.46,3.5112]
[1728414327459,3.5105,142.5,142.46,3.5112]
[1728414327757,3.5105,142.5,142.45,5.2]
[1728414327958,3.5105,142.5,142.47,3.511]
[1728414330563,3.5105,142.5,142.48,3.5108]
[1728414330854,3.5106,142.49,142.44,7.9979]
[1728414331455,3.511,142.47,142.43,0.12502]
[1728414331663,16.85,142.49,142.44,3.5116]
[1728414331862,20.9963,142.49,142.43,0.12502]
[1728414332360,3.5114,142.46,142.43,3.63682]
[1728414332764,3.5114,142.46,142.43,0.12502]
[1728414332963,3.5114,142.46,142.44,3.5118]
[1728414333663,20.9963,142.49,142.44,3.5118]
[1728414333852,3.5112,142.47,142.44,3.5118]
[1728414335267,3.5112,142.47,142.43,0.12502]
[1728414335558,16.85,142.52,142.47,3.511]
[1728414335767,5.2,142.51,142.44,16.85]
[1728414335964,8.7102,142.51,142.48,3.5107]
[1728414336471,3.5106,142.49,142.46,3.5111]
[1728414336663,3.5106,142.49,142.43,0.12502]
[1728414336868,5.2,142.51,142.43,0.12502]
[1728414337169,3.5107,142.49,142.46,3.5111]
[1728414337368,5.2,142.51,142.43,0.12502]
[1728414337765,3.5106,142.49,142.45,3.5114]
[1728414337965,3.5106,142.49,142.43,0.12502]
[1728414338771,3.5106,142.49,142.46,3.5111]
[1728414339165,16.85,142.5,142.46,3.5111]
[1728414339371,16.85,142.48,142.43,0.12502]
[1728414339769,3.5115,142.46,142.43,0.12502]
[1728414339972,3.5115,142.46,142.44,3.5117]
[1728414340167,3.5115,142.46,142.43,0.12502]
[1728414340375,3.5116,142.45,142.43,3.63692]
[1728414340574,1.4112,142.47,142.43,0.12502]
[1728414340874,3.5114,142.46,142.43,3.63692]
[1728414341781,1.4112,142.47,142.43,3.63692]
[1728414342083,1.4112,142.47,142.43,0.12502]
[1728414342283,16.85,142.46,142.43,0.12502]
[1728414342985,3.5118,142.44,142.43,0.12502]
[1728414345489,16.85,142.46,142.43,0.12502]
[1728414345785,3.5117,142.45,142.43,3.63702]
[1728414346286,3.5117,142.45,142.43,0.12502]
[1728414347185,4.2813,142.47,142.43,3.63702]
[1728414347382,5.2,142.49,142.43,0.12502]
[1728414348289,3.5111,142.47,142.43,0.12502]
[1728414348491,16.85,142.48,142.43,0.12502]
[1728414348990,3.5112,142.47,142.44,3.5116]
[1728414349191,16.85,142.48,142.44,3.5116]
[1728414349499,3.5115,142.45,142.43,3.63692]
[1728414349994,16.85,142.48,142.43,3.63692]
[1728414350290,3.5114,142.46,142.43,3.63692]
[1728414351486,3.5114,142.46,142.43,0.12502]
[1728414351693,3.5114,142.46,142.44,3.5117]
[1728414352687,16.85,142.48,142.43,0.12502]
[1728414352993,3.5115,142.45,142.43,3.63692]
[1728414355796,3.5114,142.46,142.43,3.63692]
[1728414358094,3.5111,142.47,142.45,3.5114]
[1728414358496,14.2911,142.47,142.45,3.5114]
[1728414360100,3.5113,142.46,142.44,3.5117]
[1728414360404,10.78,142.45,142.43,0.12502]
[1728414360904,10.78,142.46,142.43,0.12502]
[1728414361207,5.2,142.49,142.44,10.78]
[1728414361208,10.78,142.49,142.44,10.78]
[1728414361396,15.98,142.49,142.44,10.78]
[1728414361701,19.4907,142.49,142.47,3.511]
[1728414362108,15.98,142.49,142.44,10.78]
[1728414362289,3.5109,142.48,142.46,3.5111]
[1728414362995,14.2909,142.48,142.46,3.5111]
[1728414363496,14.2912,142.47,142.44,3.5116]
[1728414363699,10.78,142.47,142.44,3.5116]
[1728414363902,10.78,142.46,142.43,0.12502]
[1728414364504,3.5115,142.45,142.43,3.63692]
[1728414365000,14.2918,142.44,142.43,0.12502]
[1728414366299,15.98,142.44,142.4,0.11299994]
[1728414366510,3.5125,142.41,142.4,0.11299994]
[1728414367899,10.78,142.42,142.4,3.62559994]
[1728414368400,14.2922,142.43,142.4,3.62559994]
[1728414369505,15.98,142.44,142.4,0.11299994]
[1728414369996,14.292,142.44,142.41,3.5124]
[1728414371003,14.2919,142.44,142.41,3.5123]
[1728414371315,14.2919,142.44,142.4,0.11299994]
[1728414371500,14.2919,142.44,142.41,3.5124]
[1728414372408,14.2922,142.43,142.41,3.5124]
[1728414375112,10.78,142.43,142.41,3.5124]
[1728414375817,19.4917,142.45,142.43,3.5119]
[1728414376114,19.4917,142.45,142.4,10.89299994]
[1728414376808,10.78,142.44,142.4,0.11299994]
[1728414377013,10.78,142.43,142.4,0.11299994]
[1728414377608,10.78,142.43,142.41,3.5124]
[1728414377800,14.292,142.44,142.41,3.5124]
[1728414378005,14.292,142.44,142.42,3.5122]
[1728414378922,10.78,142.43,142.4,0.11299994]
[1728414379215,14.2921,142.43,142.41,3.5124]
[1728414381914,10.78,142.43,142.4,0.11299994]
[1728414382119,3.5125,142.42,142.4,0.11299994]
[1728414382825,3.5125,142.42,142.4,3.62569994]
[1728414384307,14.2925,142.42,142.4,3.62569994]
[1728414384619,14.2925,142.42,142.4,0.11299994]
[1728414384922,14.2925,142.41,142.4,0.11299994]
[1728414385516,14.2925,142.41,142.37,0.12502]
[1728414385517,3.513,142.39,142.37,3.63842]
[1728414385718,14.293,142.39,142.37,3.63842]
[1728414386207,4.84257911,142.38,142.37,3.63842]
[1728414386520,19.13587911,142.38,142.37,0.12502]
[1728414388421,14.2933,142.38,142.37,0.12502]
[1728414388611,19.12750903,142.38,142.37,0.12502]
[1728414389444,3.5135,142.37,142.36,0.1119568]
[1728414389619,14.2935,142.37,142.36,0.1119568]
[1728414390118,5.2,142.39,142.36,0.1119568]
[1728414390119,10.78,142.38,142.36,0.1119568]
[1728414390336,14.2934,142.38,142.36,0.1119568]
[1728414390509,19.12216894,142.38,142.36,0.1119568]
[1728414391317,14.2934,142.38,142.36,0.1119568]
[1728414391510,3.5134,142.38,142.36,3.6255568]
[1728414391707,14.2934,142.38,142.36,3.6255568]
[1728414392320,14.2934,142.38,142.36,0.1119568]
[1728414392824,10.78,142.38,142.36,0.1119568]
[1728414393024,10.78,142.38,142.36,3.6255568]
[1728414394522,14.2933,142.38,142.36,3.6255568]
[1728414395831,10.78,142.38,142.36,0.1119568]
[1728414396124,14.2935,142.37,142.36,0.1119568]
[1728414401631,3.5141,142.35,142.33,3.5144]
[1728414401835,10.78,142.35,142.32,0.0563797]
[1728414402329,10.78,142.35,142.33,3.5143]
[1728414403528,14.294,142.35,142.33,3.5143]
[1728414403935,10.78,142.36,142.34,3.5142]
[1728414404350,10.78,142.36,142.33,3.5144]
[1728414404531,10.78,142.36,142.32,0.0563797]
[1728414404731,10.78,142.36,142.32,10.8363797]
[1728414405036,10.78,142.37,142.33,3.5144]
[1728414405233,10.78,142.37,142.32,10.8363797]
[1728414405737,10.78,142.38,142.33,10.78]
[1728414406235,10.78,142.38,142.36,3.5136]
[1728414406533,10.78,142.38,142.33,10.78]
[1728414408734,10.78,142.38,142.37,3.5135]
[1728414409631,10.78,142.38,142.36,3.5137]
[1728414411136,14.2934,142.38,142.35,3.5139]
[1728414412341,10.78,142.38,142.35,3.5139]
[1728414412543,14.2936,142.37,142.34,3.5141]
[1728414413442,14.2936,142.37,142.32,16.0363797]
[1728414413630,10.78,142.37,142.35,3.514]
[1728414414340,14.2935,142.37,142.35,3.514]
[1728414414635,14.2935,142.37,142.34,3.5141]
[1728414419443,14.2935,142.37,142.35,3.514]
[1728414420840,14.2935,142.37,142.32,10.8363797]
[1728414420841,10.78,142.37,142.36,3.5138]
[1728414421632,10.78,142.37,142.32,10.8363797]
[1728414423339,10.78,142.37,142.36,3.5138]
[1728414423538,10.78,142.38,142.32,10.8363797]
[1728414424843,10.78,142.38,142.36,3.5135]
[1728414425641,10.78,142.38,142.37,3.5135]
[1728414429345,14.2933,142.38,142.36,3.5136]
[1728414430248,10.78,142.37,142.36,3.5136]
[1728414430941,5.2,142.39,142.37,3.5134]
[1728414430942,15.98,142.39,142.37,3.5134]
[1728414431139,15.98,142.39,142.32,10.8363797]
[1728414431549,19.4932,142.39,142.36,3.5136]
[1728414431747,15.98,142.39,142.36,3.5136]
[1728414432541,1.3895,142.41,142.34,14.37569251]
[1728414432746,1.43642,142.43,142.36,10.78]
[1728414432747,15.60204129,142.42,142.36,10.78]
[1728414432953,1.43642,142.43,142.38,10.78]
[1728414433151,10.78,142.42,142.35,6.35709428]
[1728414433356,10.78,142.4,142.35,13.6078]
[1728414433548,14.2931,142.39,142.35,1.3818]
[1728414433741,14.2931,142.39,142.34,5.2]
[1728414433956,14.2931,142.39,142.35,3.5139]
[1728414434148,14.2931,142.39,142.34,5.2]
[1728414434654,14.2931,142.39,142.36,3.5135]
[1728414435243,10.78,142.38,142.36,3.5135]
[1728414440150,10.78,142.38,142.34,5.2]
[1728414440345,10.78,142.38,142.35,3.5139]
[1728414440545,10.78,142.37,142.35,3.5139]
[1728414440752,10.78,142.37,142.32,0.0563797]
[1728414440955,3.5138,142.36,142.33,3.5143]
[1728414441360,10.78,142.37,142.32,0.0563797]
[1728414442054,3.5137,142.37,142.34,3.5141]
[1728414442259,3.5137,142.37,142.32,0.0563797]
[1728414442260,10.78,142.35,142.32,0.0563797]
[1728414442591,14.2945,142.33,142.32,0.0563797]
[1728414443654,3.5147,142.32,142.31,0.12502]
[1728414445854,14.2947,142.32,142.31,0.12502]
[1728414446550,19.12858099,142.32,142.31,0.12502]
[1728414447560,8.34858099,142.32,142.31,0.12502]
[1728414447760,15.61388099,142.32,142.31,0.12502]
[1728414448471,4.83388099,142.32,142.31,3.64002]
[1728414448682,4.83388099,142.33,142.31,0.12502]
[1728414448963,4.83388099,142.34,142.31,10.90502]
[1728414449146,10.78,142.35,142.31,10.90502]
[1728414449554,10.78,142.35,142.31,0.12502]
[1728414449958,10.78,142.35,142.33,3.5144]
[1728414450265,4.83644677,142.34,142.31,0.12502]
[1728414450461,14.294,142.35,142.31,0.12502]
[1728414450654,10.78,142.34,142.32,3.5146]
[1728414450854,10.78,142.34,142.31,0.12502]
[1728414451364,4.83781954,142.33,142.31,0.12502]
[1728414451559,10.78,142.34,142.31,0.12502]
[1728414451862,4.83783773,142.33,142.32,3.5147]
[1728414452073,19.13253773,142.33,142.31,0.12502]
[1728414452268,4.83783773,142.32,142.31,0.12502]